bitfinex/quotes_BTCUSD_20250703
["timestamp","ask_amount","ask_price","bid_price","bid_amount"]
[1751530004264,0.0024,109590.0,109580.0,0.23444577]
[1751530004484,0.30300417,109590.0,109580.0,0.23444577]
[1751530004704,0.0024,109590.0,109580.0,0.23444577]
[1751530004888,0.30300417,109590.0,109580.0,0.23444577]
[1751530005229,0.0024,109590.0,109580.0,0.23444577]
[1751530005437,0.30300417,109590.0,109580.0,0.23444577]
[1751530007318,0.30300417,109590.0,109580.0,0.23544577]
[1751530007729,0.30300417,109590.0,109580.0,0.21984577]
[1751530009288,0.30300417,109590.0,109580.0,0.22184577]
[1751530009746,0.30300417,109590.0,109580.0,0.23754577]
[1751530010139,0.0024,109590.0,109580.0,0.23754577]
[1751530010274,0.30300417,109590.0,109580.0,0.23754577]
[1751530014228,0.30300417,109590.0,109580.0,0.23752581]
[1751530015864,0.0024,109590.0,109580.0,0.23752581]
[1751530016263,0.30300417,109590.0,109580.0,0.23752581]
[1751530017344,0.30300417,109590.0,109580.0,0.2205]
[1751530017957,0.00233811,109590.0,109580.0,0.2205]
[1751530018180,0.00233811,109590.0,109580.0,0.31193693]
[1751530018345,0.00233811,109590.0,109580.0,0.34824609]
[1751530018976,0.30294228,109590.0,109580.0,0.34824609]
[1751530019194,0.00233811,109590.0,109580.0,0.34824609]
[1751530020946,0.30294228,109590.0,109580.0,0.34824609]
[1751530021293,0.00233811,109590.0,109580.0,0.34824609]
[1751530021505,0.00233811,109590.0,109580.0,0.70331401]
[1751530021727,0.00233811,109590.0,109580.0,0.40270984]
[1751530022144,0.00233811,109590.0,109580.0,0.70331401]
[1751530022555,0.30294228,109590.0,109580.0,0.40270984]
[1751530022769,0.00233811,109590.0,109580.0,0.40270984]
[1751530022982,0.30294228,109590.0,109580.0,0.40270984]
[1751530023399,0.0004,109600.0,109590.0,0.21528875]
[1751530023617,0.0004,109600.0,109590.0,1.02396335]
[1751530023828,0.0004,109600.0,109590.0,1.04211802]
[1751530024032,0.0004,109600.0,109590.0,0.76893693]
[1751530024241,0.0004,109600.0,109590.0,1.0695411]
[1751530024645,0.00086857,109600.0,109590.0,1.05129185]
[1751530024846,0.00086857,109600.0,109590.0,1.06041635]
[1751530025320,0.00086857,109600.0,109590.0,1.05129185]
[1751530025544,0.00086857,109600.0,109590.0,1.0735411]
[1751530025964,0.00086857,109600.0,109590.0,1.09294139]
[1751530026196,0.00086857,109600.0,109590.0,1.07469214]
[1751530026396,0.00086857,109600.0,109590.0,1.07869214]
[1751530026597,0.00086857,109600.0,109590.0,1.08781681]
[1751530026850,0.00086857,109600.0,109590.0,1.03335306]
[1751530027072,0.00086857,109600.0,109590.0,1.02422839]
[1751530027529,0.00086857,109600.0,109590.0,1.07860714]
[1751530027739,0.00086857,109600.0,109590.0,1.08773181]
[1751530027952,0.00086857,109600.0,109590.0,1.07860714]
[1751530028187,0.00086857,109600.0,109590.0,1.07319087]
[1751530028407,0.00086857,109600.0,109590.0,1.48562462]
[1751530028636,0.00086857,109600.0,109590.0,1.55826287]
[1751530029303,0.00086857,109600.0,109590.0,1.65454287]
[1751530030239,0.0024,109630.0,109590.0,1.65454287]
[1751530030240,0.0024,109630.0,109620.0,0.18244845]
[1751530030449,0.0024,109630.0,109620.0,1.59819862]
[1751530030663,0.0024,109630.0,109620.0,0.97630352]
[1751530030881,0.0024,109630.0,109620.0,0.99331552]
[1751530031085,0.0024,109630.0,109620.0,1.63332444]
[1751530031308,0.00063646,109630.0,109620.0,1.73332444]
[1751530031571,0.00063646,109630.0,109620.0,1.76380656]
[1751530031801,0.00895837,109640.0,109630.0,0.69613641]
[1751530032031,0.00895837,109640.0,109630.0,0.94595931]
[1751530032247,0.00895837,109640.0,109630.0,0.96404026]
[1751530032476,0.00895837,109640.0,109630.0,1.42213431]
[1751530032940,0.00895837,109640.0,109630.0,1.38600725]
[1751530033154,0.00895837,109640.0,109630.0,1.27876315]
[1751530033401,0.00895837,109640.0,109630.0,1.31112658]
[1751530033601,0.00895837,109640.0,109630.0,0.97722446]
[1751530033819,0.00895837,109640.0,109630.0,1.31112691]
[1751530034244,0.00895837,109640.0,109630.0,1.39881062]
[1751530034463,0.00895837,109640.0,109630.0,1.48351262]
[1751530034891,0.00895837,109640.0,109630.0,1.42926977]
[1751530035568,0.00895837,109640.0,109630.0,1.48333625]
[1751530036860,0.00895837,109640.0,109630.0,1.51381837]
[1751530038185,0.00895837,109640.0,109630.0,1.19381391]
[1751530038387,0.00895837,109640.0,109630.0,1.51381837]
[1751530039029,0.00895837,109640.0,109630.0,1.48923737]
[1751530039487,0.00895837,109640.0,109630.0,1.54208608]
[1751530039921,0.00895837,109640.0,109630.0,1.17351976]
[1751530040127,0.00895837,109640.0,109630.0,1.49352422]
[1751530040625,0.00895837,109640.0,109630.0,1.50248322]
[1751530040835,0.00895837,109640.0,109630.0,1.47790222]
[1751530041047,0.00895837,109640.0,109630.0,1.50248322]
[1751530042175,0.00895837,109640.0,109630.0,1.57562608]
[1751530042413,0.00895837,109640.0,109630.0,1.48458164]
[1751530043305,0.00895837,109640.0,109630.0,1.36143878]
[1751530043514,0.00895837,109640.0,109630.0,1.44190967]
[1751530043933,0.00895837,109640.0,109630.0,1.12190521]
[1751530044142,0.00895837,109640.0,109630.0,1.44190967]
[1751530044533,0.00895837,109640.0,109630.0,1.41142755]
[1751530045877,0.00895837,109640.0,109630.0,1.44190967]
[1751530046523,0.00895837,109640.0,109630.0,1.38784319]
[1751530047153,0.00895837,109640.0,109630.0,1.37098703]
[1751530047357,0.00895837,109640.0,109630.0,1.3878543]
[1751530047781,0.00895837,109640.0,109630.0,1.16817218]
[1751530047995,0.00895837,109640.0,109630.0,1.08368772]
[1751530048216,0.00895837,109640.0,109630.0,1.39682491]
[1751530048470,0.00895837,109640.0,109630.0,1.46928018]
[1751530049322,0.00895837,109640.0,109630.0,1.14927572]
[1751530049528,0.00895837,109640.0,109630.0,1.46928018]
[1751530052701,0.00895837,109640.0,109630.0,1.22463918]
[1751530052951,0.00895837,109640.0,109630.0,1.46936018]
[1751530054298,0.00895837,109640.0,109630.0,1.76436018]
[1751530055740,0.00895837,109640.0,109630.0,1.71436018]
[1751530055926,0.00895837,109640.0,109630.0,1.76436018]
[1751530056192,0.00895837,109640.0,109630.0,1.46936018]
[1751530056614,0.00895837,109640.0,109630.0,1.39690491]
[1751530057643,0.00895837,109640.0,109630.0,1.48810954]
[1751530058099,0.00895837,109640.0,109630.0,1.16810508]
[1751530058318,0.00895837,109640.0,109630.0,1.48870954]
[1751530058938,0.00895837,109640.0,109630.0,1.43870954]
[1751530059150,0.00895837,109640.0,109630.0,1.48870954]
[1751530059355,0.00895837,109640.0,109630.0,1.43870954]
[1751530059560,0.00895837,109640.0,109630.0,1.48870954]
[1751530059964,0.00895837,109640.0,109630.0,1.39750491]
[1751530060487,0.002,109650.0,109640.0,0.28029711]
[1751530060688,0.002,109650.0,109640.0,0.99585224]
[1751530060932,0.002,109650.0,109640.0,0.9867319]
[1751530061179,0.002,109650.0,109640.0,1.02326124]
[1751530061786,0.002,109650.0,109640.0,1.02526124]
[1751530061932,0.002,109650.0,109640.0,1.03438149]
[1751530062711,0.002,109650.0,109640.0,1.04350166]
[1751530062914,0.002,109650.0,109640.0,0.84526149]
[1751530063187,0.002,109650.0,109640.0,1.03430149]
[1751530063932,0.002,109650.0,109640.0,1.03630149]
[1751530064159,0.002,109650.0,109640.0,1.02718124]
[1751530064347,0.002,109650.0,109640.0,1.0180609]
[1751530064566,0.002,109650.0,109640.0,1.02718124]
[1751530065523,0.002,109650.0,109640.0,1.03630149]
[1751530065836,0.002,109650.0,109640.0,1.02718124]
[1751530066220,0.002,109650.0,109640.0,1.03630141]
[1751530066622,0.002,109650.0,109640.0,1.04542166]
[1751530068274,0.002,109650.0,109640.0,1.0180609]
[1751530068475,0.002,109650.0,109640.0,1.02718124]
[1751530068648,0.002,109650.0,109640.0,1.03630149]
[1751530068850,0.002,109650.0,109640.0,1.02718124]
[1751530069291,0.002,109650.0,109640.0,1.03630149]
[1751530071439,0.002,109650.0,109640.0,1.02718124]
[1751530071645,0.002,109650.0,109640.0,1.0180609]
[1751530071796,0.002,109650.0,109640.0,1.02718124]
[1751530071998,0.002,109650.0,109640.0,1.03630149]
[1751530073113,0.00196,109650.0,109640.0,1.03630149]
[1751530073366,0.00196,109650.0,109640.0,1.02718124]
[1751530074518,0.00196,109650.0,109640.0,1.03630149]
[1751530074740,0.00196,109650.0,109640.0,0.69805644]
[1751530074947,0.00196,109650.0,109640.0,1.02718157]
[1751530075152,0.00196,109650.0,109640.0,1.01806107]
[1751530075372,0.00196,109650.0,109640.0,1.02718157]
[1751530076039,0.00196,109650.0,109640.0,1.01806107]
[1751530076257,0.00196,109650.0,109640.0,0.55351933]
[1751530076258,0.03306,109650.0,109640.0,0.55351933]
[1751530076477,0.35306446,109650.0,109640.0,0.21351933]
[1751530076714,0.87370623,109650.0,109640.0,0.14993622]
[1751530076937,0.88282656,109650.0,109640.0,0.04033766]
[1751530077393,0.88282656,109650.0,109640.0,0.06759497]
[1751530077625,0.88282656,109650.0,109640.0,0.03125731]
[1751530077858,0.88282656,109650.0,109640.0,0.02925731]
[1751530078089,0.70442794,109650.0,109640.0,0.02925731]
[1751530078310,0.70442794,109650.0,109640.0,0.02725731]
[1751530078786,0.70442794,109650.0,109640.0,0.02825731]
[1751530079241,0.70442794,109650.0,109640.0,0.02725731]
[1751530079484,0.67332794,109650.0,109630.0,0.26239497]
[1751530079690,0.35972447,109640.0,109630.0,0.26239497]
[1751530080094,0.35060446,109640.0,109630.0,0.26239497]
[1751530081971,0.35972447,109640.0,109630.0,0.26239497]
[1751530082182,0.35972447,109640.0,109630.0,0.07359497]
[1751530082416,0.35060446,109640.0,109630.0,0.22617731]
[1751530083060,0.35060446,109640.0,109630.0,0.24316605]
[1751530083262,0.35060446,109640.0,109630.0,0.22617731]
[1751530085193,0.35260446,109640.0,109630.0,0.22617731]
[1751530085406,0.0326,109640.0,109630.0,0.22617731]
[1751530085823,0.35260446,109640.0,109630.0,0.22617731]
[1751530088416,0.32200446,109640.0,109630.0,0.22617731]
[1751530088851,0.33780446,109640.0,109630.0,0.22617731]
[1751530089471,0.002,109640.0,109630.0,0.6532187]
[1751530089681,0.002,109640.0,109630.0,0.37672924]
[1751530089899,0.002,109640.0,109630.0,0.37668924]
[1751530090105,0.002,109640.0,109630.0,0.4130269]
[1751530090337,0.002,109640.0,109630.0,0.3813269]
[1751530090547,0.33830446,109640.0,109630.0,0.1924469]
[1751530090776,0.0183,109640.0,109630.0,0.3813269]
[1751530091201,0.002,109640.0,109630.0,0.3813269]
[1751530092473,0.0175,109640.0,109630.0,0.3813269]
[1751530094137,0.002,109640.0,109630.0,0.3813269]
[1751530097662,0.002,109640.0,109630.0,0.38122051]
[1751530097881,0.35460446,109640.0,109630.0,0.19234051]
[1751530098114,0.36372455,109640.0,109630.0,0.03715092]
[1751530098585,0.36372455,109640.0,109630.0,0.22599092]
[1751530100114,0.37284472,109640.0,109630.0,0.22599092]
[1751530100331,0.38196506,109640.0,109630.0,0.03715092]
[1751530100765,0.39108556,109640.0,109630.0,0.03715092]
[1751530100983,0.39108556,109640.0,109630.0,0.01]
[1751530101193,0.38196506,109640.0,109630.0,0.01]
[1751530101474,0.39108556,109640.0,109630.0,0.01]
[1751530101695,0.40150444,109640.0,109630.0,0.01]
[1751530101908,0.58391961,109640.0,109630.0,0.01]
[1751530102142,0.5656796,109640.0,109630.0,0.01]
[1751530103513,0.5565591,109640.0,109630.0,0.01]
[1751530103948,0.6033991,109640.0,109630.0,0.01]
[1751530109171,1.04937688,109640.0,109630.0,0.01]
[1751530109397,1.39680634,109640.0,109630.0,0.01]
[1751530110085,1.39480634,109640.0,109630.0,0.01]
[1751530110298,1.40080634,109640.0,109630.0,0.01]
[1751530110515,1.39680634,109640.0,109630.0,0.01]
[1751530110739,1.39480634,109640.0,109630.0,0.01]
[1751530110985,1.40180634,109640.0,109630.0,0.01]
[1751530112298,1.08580188,109640.0,109630.0,0.01]
[1751530113386,1.27468188,109640.0,109630.0,0.01]
[1751530115015,1.24725688,109640.0,109630.0,0.01]
[1751530115922,0.92725242,109640.0,109630.0,0.01]
[1751530116164,1.24725688,109640.0,109630.0,0.01]
[1751530118975,1.01153688,109640.0,109630.0,0.01]
[1751530119221,1.24725688,109640.0,109630.0,0.01]
[1751530121984,6.24725688,109640.0,109630.0,0.01]
[1751530122827,6.65869827,109640.0,109630.0,0.01]
[1751530123057,6.56726134,109640.0,109630.0,0.01]
[1751530123275,6.59469034,109640.0,109630.0,0.01]
[1751530125399,7.09199034,109640.0,109630.0,0.01]
[1751530127550,7.11927624,109640.0,109630.0,0.01]
[1751530128430,7.21071317,109640.0,109630.0,0.01]
[1751530128650,0.72839408,109630.0,109620.0,0.00012958]
[1751530128905,6.64851993,109630.0,109620.0,0.00012958]
[1751530129957,6.67171396,109630.0,109620.0,0.00012958]
[1751530130174,6.67771396,109630.0,109620.0,0.00112958]
[1751530130379,6.79643679,109630.0,109620.0,0.00112958]
[1751530130584,6.76915089,109630.0,109620.0,0.00112958]
[1751530130787,6.74595686,109630.0,109620.0,0.00112958]
[1751530131204,6.77315089,109630.0,109620.0,0.00112958]
[1751530131416,6.80043679,109630.0,109620.0,0.00112958]
[1751530131835,6.77724276,109630.0,109620.0,0.00112958]
[1751530132100,7.14724722,109630.0,109620.0,0.00112958]
[1751530132293,0.62721155,109620.0,109610.0,0.07314286]
[1751530132523,5.37268818,109610.0,109600.0,0.002]
[1751530132743,6.33977403,109610.0,109600.0,0.0021049]
[1751530132961,6.36721103,109610.0,109600.0,0.0021049]
[1751530133409,6.39471686,109610.0,109600.0,0.0021049]
[1751530133833,6.4509551,109610.0,109600.0,0.0021049]
[1751530134067,7.07573595,109610.0,109600.0,0.0071049]
[1751530135329,7.10802185,109610.0,109600.0,0.0081049]
[1751530135535,7.07973595,109610.0,109600.0,0.0031049]
[1751530135961,7.08573595,109610.0,109600.0,0.0041049]
[1751530136397,2.08573595,109610.0,109600.0,0.0141049]
[1751530136628,7.08573595,109610.0,109600.0,0.0141049]
[1751530138507,0.67618594,109580.0,109570.0,0.06755082]
[1751530138709,1.00338287,109580.0,109570.0,0.09303777]
[1751530139908,1.00438287,109580.0,109570.0,0.09503777]
[1751530140114,1.34438287,109580.0,109570.0,0.09503777]
[1751530140323,1.35427253,109580.0,109570.0,0.07804647]
[1751530141151,1.35427253,109580.0,109570.0,0.01249565]
[1751530141778,1.16535253,109580.0,109570.0,0.01249565]
[1751530141983,1.35427253,109580.0,109570.0,0.04519565]
[1751530142419,1.11851253,109580.0,109570.0,0.01249565]
[1751530142631,1.35419253,109580.0,109570.0,0.04519565]
[1751530142839,1.35419253,109580.0,109570.0,0.01249565]
[1751530144301,1.35419253,109580.0,109570.0,0.04429565]
[1751530144707,1.35419253,109580.0,109570.0,0.0358]
[1751530144920,1.35419253,109580.0,109570.0,0.04428937]
[1751530145133,1.11851253,109580.0,109570.0,0.04428937]
[1751530145336,1.35439253,109580.0,109570.0,0.04428937]
[1751530145547,1.04351357,109580.0,109570.0,0.04428937]
[1751530145755,1.10758025,109580.0,109570.0,0.04428937]
[1751530145964,1.19901718,109580.0,109570.0,0.04428937]
[1751530146587,0.96309718,109580.0,109570.0,0.04428937]
[1751530146794,1.19901718,109580.0,109570.0,0.04428859]
[1751530146999,0.010125,109580.0,109570.0,0.04428859]
[1751530147199,0.010125,109580.0,109570.0,0.06126339]
[1751530147433,0.001,109580.0,109570.0,0.06126339]
[1751530147830,0.32100446,109580.0,109570.0,0.06126339]
[1751530148243,0.33012954,109580.0,109570.0,0.06126339]
[1751530148434,0.33012946,109580.0,109570.0,0.06126339]
[1751530148611,0.33925471,109580.0,109570.0,0.06126339]
[1751530148934,0.33925462,109580.0,109570.0,0.06126339]
[1751530149153,0.33925454,109580.0,109570.0,0.06126339]
[1751530149461,0.34837987,109580.0,109570.0,0.06126339]
[1751530150119,0.33925454,109580.0,109570.0,0.06126339]
[1751530150329,0.02837533,109580.0,109570.0,0.06126339]
[1751530150542,0.5217705,109580.0,109570.0,0.06126339]
[1751530150778,0.60408202,109580.0,109570.0,0.06126339]
[1751530150984,0.79308202,109580.0,109570.0,0.06126339]
[1751530152567,0.79308202,109580.0,109570.0,0.04478977]
[1751530152770,0.79308202,109580.0,109570.0,0.05998977]
[1751530153480,0.79308202,109580.0,109570.0,0.04299659]
[1751530153690,0.001,109580.0,109570.0,0.04299659]
[1751530153893,0.001,109580.0,109570.0,0.13443352]
[1751530154182,0.001,109580.0,109570.0,0.52758084]
[1751530154389,0.001,109580.0,109570.0,0.22624033]
[1751530154594,0.001,109580.0,109570.0,0.54624479]
[1751530155016,0.33825154,109600.0,109580.0,0.0305]
[1751530155223,0.02737075,109600.0,109590.0,0.0305]
[1751530155377,0.33825154,109600.0,109590.0,0.0305]
[1751530155587,0.35649913,109600.0,109590.0,0.0305]
[1751530156501,0.35749913,109600.0,109590.0,0.0325]
[1751530156731,0.36662321,109600.0,109590.0,0.0325]
[1751530156908,0.53998146,109600.0,109590.0,0.0325]
[1751530157354,0.219977,109600.0,109590.0,0.0325]
[1751530157554,0.53998146,109600.0,109590.0,0.0325]
[1751530157962,0.53998146,109600.0,109590.0,0.0335]
[1751530158168,0.36662304,109600.0,109590.0,0.0335]
[1751530158367,0.53998146,109600.0,109590.0,0.0335]
[1751530158990,0.18248175,109600.0,109590.0,0.0335]
[1751530159427,0.50248621,109600.0,109590.0,0.0335]
[1751530159632,0.51160988,109600.0,109590.0,0.0335]
[1751530160049,0.52073396,109600.0,109590.0,0.0335]
[1751530161378,0.52985788,109600.0,109590.0,0.0335]
[1751530161601,0.33825155,109600.0,109590.0,0.0335]
[1751530161809,0.3473753,109600.0,109590.0,0.0335]
[1751530162708,0.35649913,109600.0,109590.0,0.0335]
[1751530163539,0.02737084,109600.0,109590.0,0.0335]
[1751530163755,0.3473753,109600.0,109590.0,0.0335]
[1751530164606,0.3473753,109600.0,109590.0,0.05049707]
[1751530164814,0.32912779,109600.0,109590.0,0.05049707]
[1751530165052,0.34737479,109600.0,109590.0,0.05049707]
[1751530165864,0.35649862,109600.0,109590.0,0.05049707]
[1751530166068,0.35649854,109600.0,109590.0,0.05049707]
[1751530166282,0.36562237,109600.0,109590.0,0.0335]
[1751530166481,0.35649854,109600.0,109590.0,0.0504932]
[1751530167332,0.36562237,109600.0,109590.0,0.0504932]
[1751530167963,0.36562304,109600.0,109590.0,0.0504932]
[1751530168172,0.04561858,109600.0,109590.0,0.0504932]
[1751530168377,0.03649458,109600.0,109590.0,0.0504932]
[1751530168582,0.35649904,109600.0,109590.0,0.0504932]
[1751530169400,0.34737521,109600.0,109590.0,0.0504932]
[1751530172387,0.33825146,109600.0,109590.0,0.0504932]
[1751530172591,0.018247,109600.0,109590.0,0.0504932]
[1751530172799,0.80825477,109610.0,109600.0,0.0317]
[1751530173002,0.99697371,109610.0,109600.0,0.0486932]
[1751530174047,0.80825371,109610.0,109600.0,0.0486932]
[1751530175019,0.80925371,109610.0,109600.0,0.0486932]
[1751530177055,0.79100762,109610.0,109600.0,0.0486932]
[1751530178505,0.47100316,109610.0,109600.0,0.0486932]
[1751530178734,0.74408762,109610.0,109600.0,0.04871353]
[1751530178930,0.79100762,109610.0,109600.0,0.04871353]
[1751530179131,0.57176762,109610.0,109600.0,0.0317]
[1751530180278,0.56165337,109610.0,109600.0,0.0317]
[1751530180420,0.57077637,109610.0,109600.0,0.0317]
[1751530183578,0.57077637,109610.0,109600.0,0.0487423]
[1751530183956,0.58081341,109610.0,109600.0,0.0487423]
[1751530184593,0.37918752,109610.0,109600.0,0.0487423]
[1751530184793,0.38831027,109610.0,109600.0,0.0487423]
[1751530185005,0.00314056,109610.0,109600.0,0.0487423]
[1751530185245,0.00314056,109610.0,109600.0,0.07601237]
[1751530185658,0.00314056,109610.0,109600.0,0.08240005]
[1751530186076,0.00214056,109610.0,109600.0,0.08440005]
[1751530186295,0.00214056,109610.0,109600.0,0.08640005]
[1751530186500,0.3312676,109610.0,109600.0,0.08640005]
[1751530186919,0.34039035,109610.0,109600.0,0.08640005]
[1751530187136,0.01126314,109610.0,109600.0,0.08640005]
[1751530187350,0.52285637,109610.0,109600.0,0.05470005]
[1751530187575,0.6451933,109610.0,109600.0,0.02742998]
[1751530187778,0.8337533,109610.0,109600.0,0.02742998]
[1751530188732,0.8337533,109610.0,109600.0,0.02542998]
[1751530189138,0.8185533,109610.0,109600.0,0.02342998]
[1751530189340,0.8038533,109610.0,109600.0,0.02342998]
[1751530190259,0.75905637,109610.0,109600.0,0.03852998]
[1751530190739,0.75905637,109610.0,109600.0,0.05462998]
[1751530191344,0.75905637,109610.0,109600.0,0.05463015]
[1751530192430,0.75905637,109610.0,109600.0,0.02343015]
[1751530194405,0.43905191,109610.0,109600.0,0.02343015]
[1751530194582,0.75905637,109610.0,109600.0,0.02343015]
[1751530194810,0.75905637,109610.0,109600.0,0.03993015]
[1751530198333,0.75905637,109610.0,109600.0,0.0335423]
[1751530199222,0.75905637,109610.0,109600.0,0.0165]
[1751530199643,0.58571402,109610.0,109600.0,0.0165]
[1751530200333,0.58571402,109610.0,109600.0,0.01775295]
[1751530201418,0.76817912,109610.0,109600.0,0.01775295]
[1751530201854,0.76817912,109610.0,109600.0,0.04118542]
[1751530202071,0.76817912,109610.0,109600.0,0.04138542]
[1751530202296,0.76857912,109610.0,109600.0,0.04138542]
[1751530202741,0.76857912,109610.0,109600.0,0.02488542]
[1751530203212,0.58611394,109610.0,109600.0,0.02488542]
[1751530203442,0.25698631,109610.0,109600.0,0.02488542]
[1751530203665,0.58611402,109610.0,109600.0,0.04048542]
[1751530206683,0.8508933,109610.0,109600.0,0.02488542]
[1751530206892,0.8508933,109610.0,109600.0,0.01849475]
[1751530208889,0.8508933,109610.0,109600.0,0.00145295]
[1751530209099,0.8508933,109610.0,109600.0,0.02488791]
[1751530214608,0.8508933,109610.0,109600.0,0.02488915]
[1751530215026,0.8508933,109610.0,109600.0,0.02489244]
[1751530218158,0.8508933,109610.0,109600.0,0.04672879]
[1751530219724,0.86543415,109610.0,109600.0,0.04672879]
[1751530219909,0.89693415,109610.0,109600.0,0.0403362]
[1751530221139,0.89693415,109610.0,109600.0,0.01851091]
[1751530221779,0.89693415,109610.0,109600.0,0.0185094]
[1751530222200,0.88103415,109610.0,109600.0,0.0185094]
[1751530223123,0.86543415,109610.0,109600.0,0.0185094]
[1751530224912,0.86543415,109610.0,109600.0,0.01850657]
[1751530226463,0.6623733,109610.0,109600.0,0.01850657]
[1751530226693,0.8501733,109610.0,109600.0,0.04940657]
[1751530228178,0.8501733,109610.0,109600.0,0.07123208]
[1751530233734,0.8501733,109610.0,109600.0,0.05573208]
[1751530235125,0.8501733,109610.0,109600.0,0.04033208]
[1751530239600,0.8501733,109610.0,109600.0,0.02327846]
[1751530241822,1.13053662,109610.0,109600.0,0.02327846]
[1751530242221,1.16699333,109610.0,109600.0,0.02327846]
[1751530242443,1.16057747,109610.0,109600.0,0.02327846]
[1751530242764,1.14507747,109610.0,109600.0,0.02327846]
[1751530246275,1.14507747,109610.0,109600.0,0.00145295]
[1751530250510,1.14507747,109610.0,109600.0,0.03375295]
[1751530252249,1.14507747,109610.0,109600.0,0.0555872]
[1751530253423,1.14507747,109610.0,109600.0,0.0390872]
[1751530254592,1.14507747,109610.0,109600.0,0.0232872]
[1751530255396,1.14507747,109610.0,109600.0,0.0392872]
[1751530255872,1.14507747,109610.0,109600.0,0.0548872]
[1751530259279,1.14507747,109610.0,109600.0,0.03305295]
[1751530260180,0.95727747,109610.0,109600.0,0.03305295]
[1751530260388,0.64255273,109610.0,109600.0,0.03305295]
[1751530260580,0.82975273,109610.0,109600.0,0.03305295]
[1751530261330,0.82975273,109610.0,109600.0,0.05488912]
[1751530261967,0.82062973,109610.0,109600.0,0.05488912]
[1751530262169,1.12081362,109610.0,109600.0,0.05488912]
[1751530263211,0.52044584,109610.0,109600.0,0.05488912]
[1751530263445,1.12081362,109610.0,109600.0,0.05488912]
[1751530267381,1.12081362,109610.0,109600.0,0.03305295]
[1751530269899,1.12081362,109610.0,109600.0,0.05012374]
[1751530270590,0.82062973,109610.0,109600.0,0.05012374]
[1751530271556,1.12081362,109610.0,109600.0,0.05012374]
[1751530277979,1.12081362,109610.0,109600.0,0.01852374]
[1751530279867,1.12081362,109610.0,109600.0,0.03452374]
[1751530282134,1.12081362,109610.0,109600.0,0.05002374]
[1751530284415,1.12081362,109610.0,109600.0,0.05002464]
[1751530285451,1.12081362,109610.0,109600.0,0.05002492]
[1751530299932,1.12081362,109610.0,109600.0,0.05002475]
[1751530309643,0.52044584,109610.0,109600.0,0.05002475]
[1751530309839,1.12081362,109610.0,109600.0,0.05002475]
[1751530314643,1.12069362,109610.0,109600.0,0.05002475]
[1751530321032,0.65058834,109610.0,109600.0,0.05002475]
[1751530321257,0.52268071,109610.0,109600.0,0.05002475]
[1751530321472,0.76488396,109610.0,109600.0,0.05002475]
[1751530321688,0.76488396,109610.0,109600.0,0.09920559]
[1751530322136,1.06506785,109610.0,109600.0,0.09920559]
[1751530322383,1.06506785,109610.0,109600.0,0.07188102]
[1751530322384,0.82286535,109610.0,109600.0,0.07188102]
[1751530322624,1.03769977,109610.0,109600.0,0.07388102]
[1751530323520,1.02757669,109610.0,109600.0,0.07388102]
[1751530323734,1.02757669,109610.0,109600.0,0.07588102]
[1751530326264,1.36757669,109610.0,109600.0,0.07588102]
[1751530326689,1.36757669,109610.0,109600.0,0.07588098]
[1751530329408,1.36757669,109610.0,109600.0,0.05402471]
[1751530329645,1.36757669,109610.0,109600.0,0.07587392]
[1751530330465,1.36757669,109610.0,109600.0,0.05880325]
[1751530335571,1.45901362,109610.0,109600.0,0.05880325]
[1751530335815,1.56655055,109610.0,109600.0,0.02730325]
[1751530336061,1.45901362,109610.0,109600.0,0.02730325]
[1751530350421,1.45901362,109610.0,109600.0,0.04380325]
[1751530355786,1.45901362,109610.0,109600.0,0.06086941]
[1751530357471,1.45901362,109610.0,109600.0,0.07666941]
[1751530358516,1.44989037,109610.0,109600.0,0.07666941]
[1751530364485,1.46074822,109610.0,109600.0,0.07666941]
[1751530364693,1.44989037,109610.0,109600.0,0.07667467]
[1751530368608,1.44989037,109610.0,109600.0,0.07668101]
[1751530371857,1.44989037,109610.0,109600.0,0.06088101]
[1751530373174,1.44989037,109610.0,109600.0,0.04438101]
[1751530373378,0.84952259,109610.0,109600.0,0.04438101]
[1751530373599,1.44989037,109610.0,109600.0,0.04438101]
[1751530374279,1.5575273,109610.0,109600.0,0.04438101]
[1751530374511,1.48229037,109610.0,109600.0,0.04438101]
[1751530374716,1.46609037,109610.0,109600.0,0.04438101]
[1751530375124,1.46609037,109610.0,109600.0,0.02251911]
[1751530375343,1.44989037,109610.0,109600.0,0.02051911]
[1751530375552,1.44989037,109610.0,109600.0,0.01851911]
[1751530376200,1.45089037,109610.0,109600.0,0.01851911]
[1751530376852,1.46739037,109610.0,109600.0,0.01851911]
[1751530377740,1.45089037,109610.0,109600.0,0.01851911]
[1751530378158,1.45089037,109610.0,109600.0,0.04038073]
[1751530385238,1.45089037,109610.0,109600.0,0.01851911]
[1751530387217,1.45089037,109610.0,109600.0,0.04038147]
[1751530388742,0.85052259,109610.0,109600.0,0.04038147]
[1751530388936,1.45089037,109610.0,109600.0,0.04038147]
[1751530389738,1.45089037,109610.0,109600.0,0.05648147]
[1751530394007,1.45089037,109610.0,109600.0,0.07148147]
[1751530395136,1.45089037,109610.0,109600.0,0.05648147]
[1751530396941,1.26385037,109610.0,109600.0,0.05648147]
[1751530397179,1.45053037,109610.0,109600.0,0.07188147]
[1751530402766,1.45053037,109610.0,109600.0,0.05481531]
[1751530402968,1.45053037,109610.0,109600.0,0.07188929]
[1751530406998,1.44553037,109610.0,109600.0,0.07188929]
[1751530408507,1.45465345,109610.0,109600.0,0.07188929]
[1751530408899,1.26797345,109610.0,109600.0,0.07188733]
[1751530416091,1.26837345,109610.0,109600.0,0.07188733]
[1751530418170,1.26837345,109610.0,109600.0,0.07188151]
[1751530419995,1.2829143,109610.0,109600.0,0.07188151]
[1751530432387,1.2829143,109610.0,109600.0,0.05001915]
[1751530433084,1.4693543,109610.0,109600.0,0.05001915]
[1751530433752,1.4693543,109610.0,109600.0,0.05002877]
[1751530434321,1.4693543,109610.0,109600.0,0.07188602]
[1751530435185,1.4693543,109610.0,109600.0,0.07188601]
[1751530439917,1.4693543,109610.0,109600.0,0.07188687]
[1751530448238,1.45481345,109610.0,109600.0,0.07188687]
[1751530448417,1.45481345,109610.0,109600.0,0.07190853]
[1751530449060,1.45481345,109610.0,109600.0,0.05650853]
[1751530449989,1.45481345,109610.0,109600.0,0.03463871]
[1751530450365,1.45481345,109610.0,109600.0,0.05651064]
[1751530450945,2.04237512,109610.0,109600.0,0.01853871]
[1751530451237,7.04237512,109610.0,109600.0,0.02708418]
[1751530451424,7.04237512,109610.0,109600.0,0.02708023]
[1751530451843,6.95093819,109610.0,109600.0,0.02708023]
[1751530452263,6.95093819,109610.0,109600.0,0.00999447]
[1751530452623,6.94993819,109610.0,109600.0,0.02707402]
[1751530452836,6.95193819,109610.0,109600.0,0.02707402]
[1751530453046,6.95393819,109610.0,109600.0,0.02707402]
[1751530453259,6.95393819,109610.0,109600.0,0.00999447]